bitfinex/quotes_SOLUSD_20241007
["timestamp","ask_amount","ask_price","bid_price","bid_amount"]
[1728285166042,20.0,149.39,149.33,15.2725]
[1728285166251,6.6947,149.38,149.33,21.9689]
[1728285172151,6.6947,149.38,149.34,6.6959]
[1728285172556,6.6947,149.38,149.35,1.33887964]
[1728285174563,6.6947,149.38,149.34,6.6959]
[1728285180471,6.99172061,149.43,149.35,1.33888551]
[1728285180672,6.6938,149.4,149.35,8.03448551]
[1728285180889,46.51058115,149.44,149.37,6.6947]
[1728285180890,6.693,149.41,149.37,6.6947]
[1728285181189,6.693,149.41,149.38,1.33861468]
[1728285181367,6.693,149.41,149.36,6.82059]
[1728285182482,46.38509115,149.44,149.35,16.7386]
[1728285182800,6.6937,149.4,149.35,23.4341]
[1728285185071,1.79890997,149.39,149.33,15.2725]
[1728285185260,6.6966,149.33,149.29,33.2645]
[1728285185463,20.12549,149.37,149.29,39.9628]
[1728285185464,6.6961,149.34,149.29,39.9628]
[1728285186759,6.6961,149.34,149.29,50.83270495]
[1728285190396,20.0,149.37,149.29,44.13440495]
[1728285190567,6.6957,149.35,149.31,6.6974]
[1728285190772,6.6952,149.36,149.32,1.3392027]
[1728285193481,6.6952,149.36,149.31,6.6974]
[1728285193666,1.67402717,149.36,149.3,6.6978]
[1728285194060,6.6957,149.35,149.3,6.6978]
[1728285194681,21.67409569,149.37,149.29,33.2645]
[1728285194889,6.6961,149.34,149.29,39.9627]
[1728285195474,6.6961,149.34,149.3,6.6979]
[1728285195786,6.6956,149.35,149.31,1.33925741]
[1728285196091,6.6956,149.35,149.31,8.03665741]
[1728285196388,6.6956,149.35,149.31,6.6974]
[1728285197570,6.6956,149.35,149.29,44.13440495]
[1728285197873,6.6956,149.35,149.3,6.6978]
[1728285206696,6.6964,149.34,149.29,39.9628]
[1728285208999,6.6964,149.34,149.29,39.9628]
[1728285214305,6.6964,149.34,149.29,50.83270495]
[1728285216193,6.6964,149.34,149.29,39.9628]
[1728285227410,6.6964,149.34,149.3,1.3392943]
[1728285227598,6.6964,149.34,149.29,39.9628]
[1728285230620,6.6964,149.34,149.29,50.83270495]
[1728285242707,6.6969,149.33,149.29,33.2645]
[1728285245944,6.697,149.32,149.29,33.2645]
[1728285246625,1.67425316,149.36,149.29,16.5189]
[1728285246829,6.6975,149.31,149.29,16.5189]
[1728285247520,6.6984,149.29,149.25,16.391]
[1728285247825,6.6984,149.29,149.26,1.3396903]
[1728285248335,6.6984,149.29,149.25,23.091]
[1728285249034,6.6984,149.29,149.25,16.391]
[1728285250260,6.6988,149.28,149.25,16.391]
[1728285253131,6.6988,149.28,149.23,23.4531]
[1728285255540,23.776884,149.31,149.23,16.7521]
[1728285255840,6.6996,149.27,149.23,16.7521]
[1728285256049,0.12549,149.3,149.23,16.7521]
[1728285256343,6.6997,149.26,149.23,16.7521]
[1728285256644,6.6993,149.27,149.23,16.7521]
[1728285258440,7.81721906,149.3,149.22,6.7015]
[1728285258630,6.6997,149.26,149.22,6.7015]
[1728285258827,6.6997,149.26,149.21,27.35860495]
[1728285259150,6.6997,149.26,149.21,34.06050495]
[1728285260547,6.7002,149.25,149.21,16.4887]
[1728285260743,43.776884,149.29,149.21,16.4887]
[1728285260744,1.67526844,149.24,149.21,0.1]
[1728285260950,6.701,149.23,149.21,0.1]
[1728285262652,16.7477,149.28,149.21,0.1]
[1728285262653,20.12549,149.27,149.21,0.1]
[1728285262952,6.6997,149.26,149.21,17.67170495]
[1728285263147,6.6997,149.26,149.22,1.34013942]
[1728285264527,6.6997,149.26,149.21,17.67170495]
[1728285265849,6.6997,149.26,149.22,1.34011407]
[1728285266048,6.6997,149.26,149.21,17.67170495]
[1728285266253,6.6997,149.26,149.22,1.34011245]
[1728285266744,6.6997,149.26,149.21,17.67170495]
[1728285268851,6.6997,149.26,149.22,1.340115]
[1728285269638,6.6997,149.26,149.21,17.67170495]
[1728285269939,6.6997,149.26,149.22,1.34011133]
[1728285270737,43.776884,149.29,149.23,1.34011403]
[1728285271051,6.6988,149.28,149.23,8.04111403]
[1728285272836,6.6992,149.27,149.23,8.04111403]
[1728285275280,6.6992,149.27,149.22,26.27630495]
[1728285275440,6.6992,149.27,149.22,32.97770495]
[1728285276350,6.6992,149.27,149.22,22.1078]
[1728285278356,6.6992,149.27,149.23,0.98173666]
[1728285278557,6.6992,149.27,149.22,22.1078]
[1728285278875,6.6992,149.27,149.23,1.34001283]
[1728285279258,6.6985,149.29,149.24,6.7005]
[1728285280078,6.6981,149.3,149.25,8.04000855]
[1728285280336,33.98471288,149.32,149.27,6.6992]
[1728285280500,33.98471288,149.32,149.26,16.7492]
[1728285280501,6.6979,149.3,149.26,23.4488]
[1728285280796,6.6979,149.3,149.27,1.33969705]
[1728285280962,27.28761288,149.32,149.27,1.33969705]
[1728285281286,6.6975,149.31,149.27,1.33969705]
[1728285281484,6.6975,149.31,149.26,23.4488]
[1728285282484,6.6975,149.31,149.27,1.33969374]
[1728285283766,33.98471288,149.32,149.27,23.07619374]
[1728285284768,6.6975,149.31,149.27,23.07619374]
[1728285286089,6.6975,149.31,149.27,21.7365]
[1728285289698,6.6975,149.31,149.27,21.69610576]
[1728285291671,6.6975,149.31,149.27,15.0375]
[1728285291872,8.37196776,149.31,149.27,15.0375]
[1728285293592,6.6975,149.31,149.27,15.0375]
[1728285298894,33.98461288,149.32,149.28,1.33960083]
[1728285299089,6.6966,149.33,149.28,8.03830083]
[1728285301387,6.6966,149.33,149.28,6.6987]
[1728285301803,6.697,149.32,149.28,6.6987]
[1728285301996,6.697,149.32,149.28,8.03821538]
[1728285302507,6.697,149.32,149.28,6.6987]
[1728285303211,23.902374,149.36,149.27,15.0375]
[1728285303392,6.698,149.3,149.27,15.0375]
[1728285304297,6.6988,149.28,149.27,15.0375]
[1728285304500,6.6988,149.28,149.23,38.7291]
[1728285304704,20.12549,149.32,149.24,1.33989677]
[1728285305012,6.6984,149.29,149.24,18.91000172]
[1728285305607,6.6984,149.29,149.24,17.57010495]
[1728285306412,6.6992,149.28,149.23,38.7291]
[1728285306590,6.6992,149.28,149.24,1.33990318]
[1728285306994,6.6984,149.29,149.24,18.91000813]
[1728285307213,6.6984,149.29,149.24,12.20980813]
[1728285307513,6.6984,149.29,149.25,6.7001]
[1728285307713,6.6984,149.29,149.26,1.33977725]
[1728285310107,23.776884,149.32,149.26,1.33977725]
[1728285310338,6.6979,149.3,149.27,1.33966636]
[1728285311195,20.12549,149.34,149.27,1.33966636]
[1728285311416,45.48809864,149.36,149.28,10.86990495]
[1728285311594,52.48364699,149.36,149.29,1.33941898]
[1728285311914,6.6979,149.3,149.27,15.2683]
[1728285315624,6.6984,149.29,149.27,15.2683]
[1728285316496,1.67464817,149.32,149.27,15.2683]
[1728285316733,6.6979,149.3,149.27,15.2683]
[1728285318924,6.6979,149.3,149.25,6.7]
[1728285320423,6.6979,149.3,149.26,1.33972535]
[1728285320715,6.6979,149.3,149.26,8.03922535]
[1728285321226,6.6979,149.3,149.26,6.6995]
[1728285321612,6.6979,149.3,149.27,1.33966664]
[1728285322432,26.6974,149.32,149.27,8.03886606]
[1728285322930,6.6977,149.31,149.26,17.56960495]
[1728285324112,6.6977,149.31,149.27,1.3396451]
[1728285324440,6.6979,149.3,149.26,6.6997]
[1728285324597,6.6979,149.3,149.25,0.12549]
[1728285324802,6.6979,149.3,149.25,6.82549]
[1728285325015,6.6979,149.3,149.25,6.7]
[1728285325221,6.6979,149.3,149.26,1.33969166]
[1728285325422,6.6979,149.3,149.25,6.7]
[1728285328108,6.6979,149.3,149.26,6.6995]
[1728285328308,6.6979,149.3,149.27,1.33966966]
[1728285328610,6.6979,149.3,149.26,6.6995]
[1728285330130,6.6979,149.3,149.27,1.33968538]
[1728285330720,6.6975,149.31,149.27,1.33968538]
[1728285331016,6.6972,149.32,149.28,6.6987]
[1728285331209,6.6972,149.32,149.29,1.3394888]
[1728285331408,6.6972,149.32,149.27,6.82459]
[1728285331932,6.6976,149.31,149.26,34.31790495]
[1728285339552,6.6976,149.31,149.27,6.6992]
[1728285340725,6.6976,149.31,149.27,8.03880849]
[1728285341539,6.6976,149.31,149.27,6.6992]
[1728285341840,6.6976,149.31,149.27,8.0388094]
[1728285342342,6.6976,149.31,149.27,6.6992]
[1728285342940,6.6976,149.31,149.26,34.31780495]
[1728285345714,6.6976,149.31,149.26,23.4479]
[1728285350648,6.6976,149.31,149.27,6.6991]
[1728285351845,6.6976,149.31,149.27,6.674343]
[1728285358450,6.6971,149.32,149.27,6.674343]
[1728285359858,6.6971,149.32,149.28,6.6987]
[1728285360665,6.6971,149.32,149.27,6.6991]
[1728285360959,6.6971,149.32,149.27,8.03868347]
[1728285361260,6.6971,149.32,149.27,6.6991]
[1728285361448,6.6975,149.31,149.27,6.6991]
[1728285362555,6.6975,149.31,149.26,16.7484]
[1728285362751,6.6975,149.31,149.26,23.448]
[1728285364865,6.6975,149.31,149.27,6.6991]
[1728285365540,8.37252602,149.3,149.26,16.7484]
[1728285365736,1.67464938,149.29,149.24,6.7005]
[1728285365935,6.6988,149.28,149.23,39.6518]
[1728285366160,1.67490891,149.27,149.23,39.6518]
[1728285366545,6.6988,149.28,149.23,39.6518]
[1728285366956,8.3742203,149.27,149.23,16.7521]
[1728285367147,6.6993,149.27,149.23,16.7521]
[1728285367349,8.37502511,149.26,149.2,23.4574]
[1728285367549,6.33789,149.3,149.2,23.4574]
[1728285367550,8.37552219,149.25,149.2,23.4574]
[1728285367865,8.37582698,149.24,149.2,16.7555]
[1728285368847,8.37582698,149.24,149.19,6.7027]
[1728285368848,1.67522698,149.24,149.19,6.7027]
[1728285369154,6.701,149.23,149.18,6.7032]
[1728285372653,6.701,149.23,149.18,17.57310495]
[1728285373174,6.701,149.23,149.18,10.86990495]
[1728285373349,6.701,149.23,149.19,6.7028]
[1728285373551,6.7007,149.24,149.19,8.04317399]
[1728285373746,12.9126,149.25,149.21,1.44037282]
[1728285374052,6.6996,149.27,149.21,6.8019]
[1728285374355,6.6996,149.27,149.22,8.04151537]
[1728285374855,6.6996,149.27,149.22,6.7013]
[1728285375459,1.67518747,149.26,149.22,6.7013]
[1728285375668,6.6996,149.27,149.22,6.7013]
[1728285376354,15.8576,149.28,149.22,6.7013]
[1728285376557,6.6997,149.26,149.22,6.7013]
[1728285376861,1.67517067,149.27,149.23,6.701]
[1728285377055,8.37423002,149.28,149.23,6.701]
[1728285377258,6.6993,149.27,149.21,23.5555]
[1728285377968,6.6997,149.26,149.21,23.5555]
[1728285378169,6.6997,149.26,149.22,6.7015]
[1728285384265,43.776884,149.31,149.22,10.86990495]
[1728285384471,6.6987,149.29,149.24,6.7006]
[1728285385180,6.6987,149.29,149.24,8.04053487]
[1728285385363,6.6987,149.29,149.24,8.04053405]
[1728285385565,6.6988,149.28,149.24,6.7006]
[1728285385867,6.6988,149.28,149.23,16.752]
[1728285386072,6.6988,149.28,149.24,1.33993557]
[1728285386368,6.6988,149.28,149.23,23.4529]
[1728285391178,1.67491864,149.3,149.23,23.4529]
[1728285391483,6.6997,149.26,149.21,0.22549]
[1728285391687,6.6997,149.26,149.21,6.8016]
[1728285392558,6.6997,149.26,149.21,8.14170904]
[1728285393772,6.6997,149.26,149.21,6.8016]
[1728285394279,6.6997,149.26,149.22,1.34010921]
[1728285397587,6.6997,149.26,149.21,6.8016]
[1728285397785,67.49950236,149.31,149.22,1.34011014]
[1728285397966,6.6993,149.27,149.22,18.91111509]
[1728285398482,6.6993,149.27,149.23,6.7009]
[1728285398661,6.6993,149.27,149.22,17.57130495]
[1728285399957,6.6993,149.27,149.22,6.7014]
[1728285400686,6.6997,149.26,149.22,6.7014]
[1728285402773,1.6750043,149.3,149.21,0.1]
[1728285403083,6.7003,149.25,149.21,0.1]
[1728285403386,6.701,149.23,149.21,0.1]
[1728285409395,23.902374,149.27,149.21,0.1]
[1728285409573,6.7007,149.24,149.21,0.1]
[1728285415708,6.7012,149.23,149.21,0.1]
[1728285416398,6.31,149.28,149.21,1.44029244]
[1728285416695,23.86141107,149.29,149.21,6.8018]
[1728285416696,6.7001,149.25,149.21,6.8018]
[1728285419875,6.7001,149.25,149.21,0.1]
[1728285422478,6.7001,149.25,149.21,1.44016584]
[1728285422702,6.7001,149.25,149.21,0.1]
[1728285423707,6.7001,149.25,149.21,1.44016813]
[1728285423876,6.7001,149.25,149.21,8.14196813]
[1728285424303,6.7001,149.25,149.21,6.8018]
[1728285424906,6.7009,149.24,149.21,0.1]
[1728285426086,6.7009,149.24,149.21,1.44016564]
[1728285426286,6.7009,149.24,149.21,0.1]
[1728285427082,6.7002,149.25,149.21,12.31007369]
[1728285427305,6.7002,149.25,149.21,19.01187369]
[1728285427483,6.6997,149.26,149.21,19.01187369]
[1728285428005,6.7002,149.25,149.21,19.01187369]
[1728285428503,6.7001,149.26,149.21,17.67170495]
[1728285429003,6.7003,149.25,149.21,0.1]
[1728285432507,6.701,149.24,149.21,0.1]
[1728285433185,6.7011,149.23,149.21,0.1]
[1728285434610,6.7015,149.22,149.21,0.1]
[1728285442126,6.7015,149.22,149.21,0.1]
[1728285450737,20.0,149.26,149.21,1.44029579]
[1728285451028,6.701,149.23,149.21,0.1]
[1728285461131,1.67525129,149.26,149.21,0.1]
[1728285461430,6.7015,149.22,149.21,0.1]
[1728285498076,8.37714304,149.22,149.21,0.1]
[1728285498450,6.7015,149.22,149.21,0.1]
[1728285506259,6.7011,149.23,149.21,0.1]
[1728285506464,6.7006,149.24,149.21,15.6179]
[1728285507072,29.23891855,149.27,149.21,15.6179]
[1728285507073,6.7015,149.22,149.21,15.6179]
[1728285510567,6.7015,149.22,149.21,0.1]
[1728285518084,30.478384,149.22,149.21,0.1]
[1728285520891,6.7015,149.22,149.21,0.1]
[1728285556119,26.7015,149.22,149.21,0.1]
[1728285560300,6.7015,149.22,149.21,0.1]
[1728285562707,6.7011,149.23,149.21,0.1]
[1728285563491,6.7006,149.24,149.21,0.1]
[1728285564820,35.75909906,149.25,149.21,0.1]
[1728285565006,29.05889906,149.25,149.21,0.1]
[1728285565200,6.7007,149.24,149.21,0.1]
[1728285567021,6.701,149.23,149.21,0.1]
[1728285567203,6.7015,149.22,149.21,0.1]
[1728285575423,6.7011,149.23,149.21,0.1]
[1728285579807,29.05889906,149.25,149.21,0.1]
[1728285580011,6.7007,149.24,149.21,0.1]
[1728285581514,6.7007,149.24,149.21,1.44019733]
[1728285582125,6.7007,149.24,149.21,0.1]
[1728285586531,29.05889906,149.25,149.21,0.1]
[1728285586730,29.05889906,149.25,149.21,8.14161807]
[1728285586933,6.6998,149.26,149.21,6.8015]
[1728285588615,6.6998,149.26,149.22,6.7014]
[1728285588832,6.6993,149.27,149.22,6.7014]
[1728285589423,21.67495002,149.29,149.22,6.7014]
[1728285589623,6.6997,149.26,149.22,6.7014]
[1728285591217,6.6997,149.26,149.21,23.5561]
[1728285592748,6.7002,149.25,149.21,23.5561]
[1728285595251,6.7007,149.24,149.21,0.1]
[1728285596343,1.67521507,149.29,149.21,0.1]
[1728285596344,6.7011,149.23,149.21,0.1]
[1728285615068,23.73703893,149.28,149.21,0.1]
[1728285615069,6.7001,149.25,149.21,0.1]
[1728285615245,6.7001,149.25,149.22,1.34007866]
[1728285618044,65.22456808,149.31,149.22,1.34007866]
[1728285618045,20.0,149.3,149.22,1.34007866]
[1728285618370,6.6996,149.27,149.22,1.34007866]
[1728285618549,6.6996,149.27,149.22,6.7014]
[1728285619245,6.6996,149.27,149.23,22.1865]
[1728285619858,6.6996,149.27,149.24,1.33990247]
[1728285621178,6.6987,149.29,149.24,6.7004]
[1728285621468,6.6987,149.29,149.24,0.12549]
[1728285621676,6.6987,149.29,149.24,6.82599]
[1728285623169,6.6992,149.27,149.23,15.4856]
[1728285623562,20.0,149.29,149.23,15.4856]
[1728285623754,6.7005,149.25,149.21,0.1]
[1728285640384,23.776884,149.27,149.21,0.1]
[1728285640694,6.7011,149.23,149.21,0.1]
[1728285647496,6.7015,149.22,149.21,0.1]
[1728285648105,6.701,149.23,149.21,0.1]
[1728285649279,6.7015,149.22,149.21,0.1]
[1728285649675,21.67541132,149.26,149.21,0.1]
[1728285649877,6.7011,149.23,149.21,0.1]
[1728285651198,6.7005,149.25,149.21,0.1]
[1728285651396,6.7006,149.24,149.21,0.1]
[1728285657136,21.67537296,149.26,149.21,0.1]
[1728285657433,6.7011,149.23,149.21,0.1]
[1728285660414,8.37692129,149.22,149.21,0.1]
[1728285660618,6.7015,149.22,149.21,0.1]
[1728285662927,6.7011,149.23,149.21,0.1]
[1728285663124,6.99306488,149.25,149.21,0.1]
[1728285663329,6.7015,149.22,149.21,0.1]
[1728285664550,2.0,149.1,149.01,1.99892681]
[1728285664763,6.7195,148.82,148.81,0.1]
[1728285665042,23.776884,148.92,148.76,54.12749104]
[1728285665254,1.67999492,148.91,148.79,16.4386]
[1728285665419,3.51635,148.9,148.85,10.86990495]
[1728285665617,9.0479988,149.02,148.8,6.7202]
[1728285665618,1.67942795,149.01,148.8,6.7202]
[1728285665816,9.0479988,149.02,148.85,10.86990495]
[1728285666020,9.0479988,149.02,148.89,10.86990495]
[1728285666244,1.6783276,149.01,148.83,16.7969]
[1728285666443,6.7139,148.95,148.83,33.86603088]
[1728285666641,6.7139,148.95,148.86,6.7174]
[1728285666942,0.25098,149.0,148.86,17.06913088]
[1728285667245,1.67847687,148.99,148.88,6.7165]
[1728285667433,0.25098,148.98,148.86,6.7175]
[1728285667639,6.714,148.95,148.85,17.06913088]
[1728285667944,0.12549,148.98,148.85,17.06913088]
[1728285668135,6.7129,148.97,148.87,6.7169]
[1728285668446,1.67868879,148.96,148.87,6.7169]
[1728285669034,1.67868879,148.96,148.88,0.12549]
[1728285669239,1.67868879,148.96,148.87,6.7169]
[1728285669430,8.39208879,148.96,148.87,6.7169]
[1728285669631,6.7143,148.94,148.85,6.7179]
[1728285669830,6.7125,148.98,148.88,6.7165]
[1728285670154,6.713,148.97,148.88,6.7165]
[1728285670652,6.713,148.97,148.89,0.12549]
[1728285671026,1.67868739,148.96,148.89,0.12549]
[1728285671229,43.776884,149.02,148.88,6.7165]
[1728285671446,43.776884,149.02,148.87,16.7923]
[1728285671447,6.7134,148.96,148.87,16.7923]
[1728285671661,6.7134,148.96,148.88,0.12549]
[1728285671864,6.7134,148.96,148.87,16.7923]
[1728285672043,6.7143,148.94,148.87,16.7923]
[1728285672372,30.492084,148.92,148.82,23.518]
[1728285672532,1.67927835,148.91,148.82,23.518]
[1728285673053,1.67927835,148.91,148.82,40.58713088]
[1728285673431,1.67924931,148.9,148.83,6.7187]
[1728285674142,30.492084,148.92,148.84,0.12549]
[1728285674358,0.12549,148.95,148.69,317.208246]
[1728285674359,41.25637831,148.91,148.69,317.208246]
[1728285674667,33.5969,148.83,148.6,6.6095]
[1728285674844,6.7209,148.79,148.62,17.06913088]
[1728285675050,6.7198,148.82,148.65,17.06913088]
[1728285675367,6.7219,148.77,148.66,6.7264]
[1728285675657,6.7224,148.76,148.67,6.726]
[1728285675884,6.722,148.77,148.68,7.72001151]
[1728285676051,23.776884,148.76,148.66,6.7266]
[1728285676245,23.776884,148.76,148.63,0.4909131]
[1728285676246,1.80647855,148.75,148.63,0.4909131]
[1728285676557,0.40404303,148.83,148.63,0.4909131]
[1728285676558,24.027864,148.82,148.63,0.4909131]
[1728285676764,24.027864,148.82,148.67,6.726]
[1728285676959,24.027864,148.8,148.65,16.8179]
[1728285677257,24.027864,148.78,148.67,6.726]
[1728285677462,0.40404303,148.83,148.69,6.7253]
[1728285677643,23.902374,148.81,148.7,6.7247]
[1728285677852,23.776884,148.79,148.73,6.7233]
[1728285678268,1.6807812,148.78,148.73,6.7233]
[1728285679862,1.6807812,148.78,148.74,6.7228]
[1728285681157,23.776884,148.77,148.74,6.7228]
[1728285681373,1.68091246,148.76,148.74,6.7228]
[1728285681766,0.12549,148.78,148.72,6.7238]
[1728285681967,1.68093796,148.78,148.73,6.7232]
[1728285682879,1.68080304,148.77,148.74,6.7229]
[1728285683059,0.12549,148.79,148.72,6.7238]
[1728285683260,0.12549,148.79,148.69,16.8126]
[1728285683261,23.776884,148.78,148.69,16.8126]
[1728285683457,1.68085695,148.77,148.69,16.8126]
[1728285684193,1.68085695,148.77,148.73,6.7233]
[1728285688093,23.776884,148.75,148.69,23.5377]
[1728285688393,1.68116269,148.74,148.69,23.5377]
[1728285688562,1.68116269,148.74,148.7,6.7247]
[1728285689192,23.776884,148.73,148.69,16.8126]
[1728285689373,20.0,148.79,148.71,6.7241]
[1728285689693,25.70892193,148.78,148.71,6.7241]
[1728285690668,23.776884,148.76,148.71,6.7241]
[1728285690888,1.68103632,148.75,148.71,6.7241]
[1728285691088,23.776884,148.76,148.71,6.7241]
[1728285691391,1.68102636,148.75,148.71,6.7241]
[1728285691592,23.776884,148.76,148.72,6.7237]
[1728285691787,0.12549,148.78,148.73,6.7232]
[1728285692091,20.0,148.76,148.73,6.7232]
[1728285692287,1.6809083,148.75,148.73,6.7232]
[1728285692663,23.776884,148.77,148.73,6.7232]
[1728285694589,1.68091701,148.76,148.73,6.7232]
[1728285695100,23.776884,148.75,148.71,6.7244]
[1728285695303,1.68110363,148.74,148.71,6.7244]
[1728285696697,23.776884,148.78,148.7,0.99461606]
[1728285696922,1.68085484,148.77,148.69,16.8126]
[1728285698000,23.776884,148.78,148.73,6.7231]
[1728285698378,1.68088897,148.77,148.73,6.7231]
[1728285699793,23.776884,148.78,148.73,6.7231]
[1728285699997,1.68088662,148.77,148.73,6.7231]
[1728285700827,23.902374,148.79,148.73,6.7231]
[1728285701003,0.12549,148.78,148.73,6.7231]
[1728285701208,20.0,148.76,148.71,6.7243]
[1728285701511,1.68099616,148.75,148.71,6.7243]
[1728285701720,23.776884,148.77,148.72,6.7237]
[1728285701904,1.68092272,148.76,148.72,6.7237]
[1728285705119,1.68097575,148.76,148.72,6.7237]
[1728285707010,1.68097575,148.76,148.69,23.5378]
[1728285707011,23.902374,148.75,148.69,23.5378]
[1728285707200,23.776884,148.73,148.69,23.5378]
[1728285707517,1.68128109,148.72,148.69,23.5378]
[1728285708330,1.68128109,148.72,148.68,6.7257]
[1728285708627,0.12549,148.75,148.7,6.7246]
[1728285708809,20.12549,148.75,148.67,16.8148]
[1728285709309,25.45809144,148.74,148.69,6.725]
[1728285709821,1.68132553,148.73,148.69,6.725]
[1728285712211,23.902374,148.72,148.67,16.8148]
[1728285712406,21.68154272,148.71,148.67,16.8148]
[1728285712613,1.68154272,148.71,148.68,6.7257]
[1728285712821,23.776884,148.72,148.69,6.7252]
[1728285714035,1.68139024,148.71,148.67,23.5407]
[1728285715425,1.68139024,148.71,148.67,16.8148]
[1728285716825,21.68139024,148.71,148.67,16.8148]
[1728285717524,20.0,148.69,148.63,17.3105131]
[1728285717729,20.0,148.67,148.63,24.0385131]
[1728285717939,1.68199034,148.66,148.63,17.3105131]
[1728285718422,43.776884,148.64,148.63,0.4909131]
[1728285719044,20.0,148.64,148.63,0.4909131]
[1728285719217,43.776884,148.64,148.63,0.4909131]
[1728285720231,20.0,148.64,148.63,0.4909131]
[1728285721431,6.7258,148.68,148.63,0.4909131]
[1728285721746,1.68196463,148.67,148.63,0.4909131]
[1728285722719,20.0,148.67,148.63,0.4909131]
[1728285723262,7.00099234,148.71,148.63,0.4909131]
[1728285723263,6.7254,148.69,148.63,0.4909131]
[1728285723467,21.68181617,148.68,148.63,0.4909131]
[1728285724738,21.68181617,148.68,148.63,7.2187131]
[1728285725459,20.0,148.68,148.63,7.2187131]
[1728285726455,1.68181667,148.68,148.63,7.2187131]
[1728285726625,1.68181667,148.68,148.63,0.4909131]
[1728285726830,6.7249,148.7,148.64,6.7276]
[1728285727027,8.4065296,148.7,148.64,6.7276]
[1728285727528,6.7259,148.68,148.63,7.2189131]
[1728285727754,6.7254,148.69,148.63,7.2189131]
[1728285728052,21.68170802,148.68,148.63,7.2189131]
[1728285728454,20.0,148.68,148.63,7.2189131]
[1728285729444,20.0,148.7,148.64,6.7276]
[1728285729757,20.0,148.7,148.65,6.7271]
[1728285729968,1.68172999,148.7,148.66,6.7266]
[1728285731249,21.68172999,148.7,148.66,6.7266]
[1728285732158,1.68172999,148.7,148.66,6.7266]
[1728285732364,8.40596745,148.71,148.66,6.7266]
[1728285732572,20.0,148.7,148.66,6.7266]
[1728285732771,20.0,148.67,148.64,16.819]
[1728285732961,1.68168959,148.67,148.64,16.819]
[1728285733160,20.0,148.68,148.64,16.819]
[1728285733362,20.0,148.68,148.64,23.5465]
[1728285733565,21.68173571,148.68,148.64,23.5465]
[1728285733872,21.68173571,148.68,148.64,16.819]
[1728285733873,1.68173571,148.68,148.64,16.819]
[1728285734065,21.68162278,148.69,148.65,6.7271]
[1728285734959,21.68162278,148.69,148.64,16.819]
[1728285734960,1.68162278,148.69,148.64,23.5466]
[1728285735283,21.68169238,148.68,148.64,23.5466]
[1728285735680,20.0,148.68,148.64,16.819]
[1728285735985,26.7258,148.68,148.64,16.819]
[1728285736287,6.7263,148.67,148.63,0.4909131]
[1728285736457,6.7263,148.67,148.62,6.7285]
[1728285736663,20.0,148.68,148.62,6.7285]
[1728285736980,6.7257,148.69,148.63,6.728]
[1728285737160,26.66357549,148.72,148.63,6.728]
[1728285737161,20.0,148.67,148.63,6.728]
[1728285737963,8.40855896,148.66,148.61,16.9224]
[1728285738166,26.7263,148.67,148.62,6.7283]
[1728285738697,1.68180492,148.66,148.62,6.7283]
[1728285741296,1.68180492,148.66,148.61,0.1]
[1728285741603,20.12549,148.69,148.61,0.1]
[1728285741904,6.7277,148.64,148.61,0.1]
[1728285743480,21.68222166,148.63,148.61,0.1]
[1728285744198,6.7277,148.64,148.61,0.1]
[1728285744199,26.7277,148.64,148.61,0.1]
[1728285744390,1.68222227,148.63,148.61,0.1]
[1728285745104,26.7285,148.62,148.61,0.1]
[1728285746191,20.0,148.62,148.61,0.1]
[1728285748918,26.7285,148.62,148.61,0.1]
[1728285763147,50.505384,148.62,148.61,0.1]
[1728285763348,26.7285,148.62,148.61,0.1]
[1728285771639,6.7282,148.63,148.61,0.1]